bitfinex/quotes_BTCUSD_20250422
["timestamp","ask_amount","ask_price","bid_price","bid_amount"]
[1745364529083,0.00131177,93389.0,93388.0,0.50122503]
[1745364529503,0.00827637,93393.0,93389.0,0.06424739]
[1745364529709,0.00827637,93393.0,93391.0,0.06424582]
[1745364529933,0.00827637,93393.0,93392.0,0.6020031]
[1745364530467,0.00827637,93393.0,93392.0,0.1156591]
[1745364530666,0.00827637,93393.0,93392.0,0.4791871]
[1745364530876,0.00827637,93393.0,93392.0,0.9420701]
[1745364531077,0.00827637,93393.0,93392.0,0.7171841]
[1745364531273,0.00827637,93393.0,93392.0,0.73172495]
[1745364531502,7e-05,93399.0,93398.0,0.0642412]
[1745364531720,0.0002094,93399.0,93398.0,0.17468506]
[1745364532068,0.0001394,93409.0,93408.0,0.07877517]
[1745364532275,0.0004237,93427.0,93408.0,0.07877517]
[1745364532276,0.0004237,93427.0,93425.0,0.06422236]
[1745364532488,0.0004237,93427.0,93426.0,3.92459583]
[1745364532699,0.001,93489.0,93448.0,0.07874768]
[1745364532908,0.001,93489.0,93448.0,0.11044245]
[1745364533117,0.00113943,93449.0,93448.0,0.10830305]
[1745364533321,0.00113943,93449.0,93448.0,0.13019995]
[1745364533532,0.00113943,93449.0,93448.0,0.1156591]
[1745364533791,0.00113943,93449.0,93448.0,0.13019995]
[1745364534002,0.0004247,93487.0,93460.0,0.01454085]
[1745364534124,0.0004247,93487.0,93461.0,1.416149]
[1745364534333,0.0004247,93487.0,93449.0,0.535337]
[1745364534534,0.11836,93484.0,93459.0,0.02684888]
[1745364534772,0.0004247,93487.0,93460.0,0.72274251]
[1745364534968,0.0004247,93487.0,93463.0,0.07489535]
[1745364535122,0.0004247,93487.0,93464.0,1.60161518]
[1745364535498,0.0004247,93487.0,93466.0,0.01454085]
[1745364535701,0.0004247,93487.0,93468.0,0.01454085]
[1745364535841,0.0004247,93487.0,93477.0,0.01454085]
[1745364536043,0.001,93489.0,93486.0,0.07487751]
[1745364536392,0.01111111,93500.0,93497.0,0.06417308]
[1745364536602,7e-05,93525.0,93498.0,1.623272]
[1745364536838,7e-05,93525.0,93490.0,0.01454085]
[1745364537034,7e-05,93525.0,93491.0,0.203736]
[1745364537258,0.57309704,93520.0,93492.0,0.10830305]
[1745364537572,0.57309704,93520.0,93493.0,0.06417592]
[1745364537765,0.00612322,93519.0,93499.0,0.06417127]
[1745364537973,0.00612322,93519.0,93501.0,0.01454085]
[1745364538184,0.00612322,93519.0,93502.0,0.65230346]
[1745364538330,0.00612322,93519.0,93506.0,0.064167]
[1745364538532,0.00612322,93519.0,93508.0,0.06416563]
[1745364538818,0.00612322,93519.0,93509.0,0.11044148]
[1745364539021,0.00612322,93519.0,93509.0,0.91997248]
[1745364539247,0.00612322,93519.0,93509.0,0.9285282]
[1745364539466,0.00612322,93519.0,93514.0,0.06416096]
[1745364539693,0.00612322,93519.0,93516.0,0.06416014]
[1745364539914,0.00612322,93519.0,93518.0,0.07869962]
[1745364540155,0.00612322,93519.0,93518.0,0.10830305]
[1745364540385,0.00612322,93519.0,93500.0,0.06417098]
[1745364540606,0.00612322,93519.0,93480.0,0.06418427]
[1745364540830,0.00612322,93519.0,93475.0,0.13401804]
[1745364541049,0.00612322,93519.0,93484.0,0.01069701]
[1745364541295,0.00612322,93519.0,93486.0,0.07487705]
[1745364541523,0.00612322,93519.0,93510.0,0.65907605]
[1745364541753,0.00612322,93519.0,93517.0,0.06415902]
[1745364541973,0.00612322,93519.0,93518.0,0.6106129]
[1745364543116,7e-05,93529.0,93523.0,0.01454085]
[1745364543326,7e-05,93529.0,93528.0,0.01454085]
[1745364543546,7e-05,93529.0,93528.0,0.12498171]
[1745364543760,7e-05,93529.0,93528.0,3.57118601]
[1745364544004,7e-05,93529.0,93528.0,2.4383889]
[1745364544229,7e-05,93529.0,93528.0,2.20990972]
[1745364544455,0.001,93549.0,93547.0,0.06413861]
[1745364544456,0.00084001,93549.0,93547.0,0.06413861]
[1745364544673,0.0475247,93603.0,93568.0,0.06412448]
[1745364544979,0.00718036,93579.0,93578.0,0.06411763]
[1745364545200,0.00012524,93579.0,93578.0,3.27878153]
[1745364545423,0.00012524,93579.0,93578.0,2.73513953]
[1745364545630,0.00012524,93579.0,93578.0,0.69713753]
[1745364545839,0.57309704,93620.0,93592.0,0.0641075]
[1745364545840,0.5696817,93620.0,93592.0,0.0641075]
[1745364546067,5.6476,93845.0,93578.0,0.00046252]
[1745364546068,0.08568292,93588.0,93578.0,0.00046252]
[1745364546286,0.10830305,93587.0,93578.0,0.00046252]
[1745364546490,0.12328,93586.0,93578.0,0.00046252]
[1745364546706,0.10830305,93585.0,93578.0,0.00046252]
[1745364546928,0.57309704,93550.0,93549.0,0.01584284]
[1745364547148,0.0471,93549.0,93497.0,0.0478]
[1745364547390,0.0471,93549.0,93491.0,0.001]
[1745364547391,0.57309704,93530.0,93529.0,0.00046267]
[1745364547611,0.08568292,93535.0,93529.0,0.00046267]
[1745364547830,0.10830305,93534.0,93529.0,0.00046267]
[1745364548046,0.10830305,93534.0,93511.0,0.001]
[1745364548270,0.31019954,93535.0,93511.0,0.00146278]
[1745364548271,0.08568292,93520.0,93511.0,0.00146278]
[1745364548483,0.23158305,93519.0,93511.0,0.00146278]
[1745364549535,0.10830305,93517.0,93511.0,0.00146278]
[1745364549870,0.10830305,93517.0,93511.0,0.00246278]
[1745364550285,0.21382686,93534.0,93511.0,0.00246278]
[1745364550286,0.0471,93550.0,93511.0,0.11076583]
[1745364550487,0.0471,93550.0,93512.0,2.15618805]
[1745364550779,0.10830305,93549.0,93513.0,1.696246]
[1745364550981,0.0471,93550.0,93523.0,0.06415534]
[1745364551110,0.0471,93550.0,93524.0,1.93413101]
[1745364551323,0.0471,93550.0,93525.0,0.463429]
[1745364551528,0.0471,93550.0,93525.0,0.237326]
[1745364551821,0.10830305,93549.0,93512.0,0.946394]
[1745364551969,0.10830305,93549.0,93513.0,0.10830305]
[1745364552134,0.10830305,93549.0,93513.0,0.79600605]
[1745364552340,0.10830305,93549.0,93514.0,0.883794]
[1745364552596,0.10830305,93549.0,93515.0,0.10830305]
[1745364552799,0.0471,93550.0,93520.0,0.01454085]
[1745364553037,0.0471,93550.0,93526.0,0.06415309]
[1745364553229,0.0471,93550.0,93527.0,0.75990805]
[1745364553433,0.0471,93550.0,93528.0,0.531338]
[1745364553702,0.0471,93550.0,93518.0,0.421793]
[1745364553862,0.0471,93550.0,93519.0,0.10830305]
[1745364554072,0.0471,93550.0,93520.0,0.74431016]
[1745364554276,0.0471,93550.0,93521.0,1.94720305]
[1745364554475,0.0004244,93558.0,93527.0,0.01069209]
[1745364554686,0.0004244,93558.0,93533.0,0.06414844]
[1745364554888,0.0004244,93558.0,93546.0,0.0641389]
[1745364555129,0.0004244,93558.0,93547.0,1.42987952]
[1745364555475,0.0004244,93558.0,93548.0,0.960953]
[1745364555686,0.0004244,93558.0,93549.0,0.11044057]
[1745364555898,0.0004244,93558.0,93557.0,0.06413202]
[1745364556083,0.0004244,93558.0,93551.0,1.196411]
[1745364556308,0.0004244,93558.0,93552.0,2.23198044]
[1745364556545,0.0004244,93558.0,93552.0,0.10830305]
[1745364556768,0.0004244,93558.0,93553.0,0.897003]
[1745364556988,0.0004244,93558.0,93549.0,0.00046278]
[1745364557445,0.0454,93553.0,93549.0,0.00046278]
[1745364557678,0.15370305,93553.0,93549.0,0.00046278]
[1745364558931,0.0454,93553.0,93549.0,0.00046278]
[1745364560712,0.10830305,93552.0,93549.0,5.00046278]
[1745364561344,0.0454,93553.0,93549.0,5.00046278]
[1745364563502,0.0454,93553.0,93549.0,4.77605043]
[1745364564390,0.15370305,93553.0,93549.0,4.77605043]
[1745364564871,0.14370305,93553.0,93549.0,4.77605043]
[1745364566798,0.0004244,93558.0,93549.0,4.77605043]
[1745364568209,0.10872745,93558.0,93549.0,4.77605043]
[1745364568413,0.10830305,93557.0,93549.0,4.77605043]
[1745364569533,0.32209246,93550.0,93549.0,3.93255043]
[1745364569766,0.53099252,93550.0,93491.0,0.001]
[1745364569998,0.68140009,93530.0,93511.0,0.00146306]
[1745364570251,0.57309704,93521.0,93511.0,0.00146306]
[1745364570473,0.412,93529.0,93511.0,0.00146306]
[1745364570474,0.10830305,93520.0,93511.0,0.00146306]
[1745364570690,0.412,93529.0,93511.0,0.00146306]
[1745364570912,0.10830305,93528.0,93511.0,0.00146306]
[1745364571123,0.10830305,93528.0,93512.0,0.0472]
[1745364573090,0.10830305,93528.0,93511.0,0.00146306]
[1745364573287,0.57309704,93521.0,93511.0,0.00146306]
[1745364573509,0.10830305,93520.0,93511.0,0.00146306]
[1745364574163,0.10830305,93517.0,93511.0,0.00146306]
[1745364574843,0.01069129,93534.0,93511.0,0.00146306]
[1745364574844,0.06228341,93603.0,93524.0,0.01069244]
[1745364575070,0.06228341,93603.0,93538.0,0.01069084]
[1745364575071,0.12784,93589.0,93538.0,0.01069084]
[1745364575300,0.12784,93589.0,93544.0,0.0472]
[1745364575568,0.10830305,93557.0,93544.0,0.0472]
[1745364576024,0.10830305,93557.0,93553.0,0.3]
[1745364576910,0.10830305,93557.0,93553.0,0.30046306]
[1745364576911,0.10930305,93557.0,93553.0,0.30046306]
[1745364577329,0.10830305,93556.0,93553.0,0.30046306]
[1745364577971,0.001,93557.0,93553.0,0.30046306]
[1745364579478,0.12684,93556.0,93553.0,0.30046306]
[1745364579731,0.12684,93555.0,93553.0,0.30046306]
[1745364580183,0.12684,93554.0,93553.0,0.30046306]
[1745364581122,0.23514305,93554.0,93553.0,0.30046306]
[1745364581588,0.23514305,93554.0,93553.0,0.00046306]
[1745364581821,0.6707998,93554.0,93553.0,0.00046306]
[1745364582030,0.64714305,93554.0,93553.0,0.00046306]
[1745364582242,0.57309704,93550.0,93512.0,0.0455]
[1745364582448,0.10830305,93544.0,93518.0,0.04766318]
[1745364582665,0.10830305,93544.0,93518.0,0.04266318]
[1745364585519,0.01069232,93525.0,93518.0,0.00046318]
[1745364585711,0.53884,93524.0,93518.0,0.00046318]
[1745364585921,0.10830305,93523.0,93518.0,0.00046318]
[1745364587618,0.11130305,93523.0,93518.0,0.00046318]
[1745364587972,0.12684,93522.0,93518.0,0.00046318]
[1745364588187,0.10830305,93521.0,93518.0,0.00046318]
[1745364588976,0.12684,93522.0,93518.0,0.00046318]
[1745364589584,0.10830305,93521.0,93518.0,0.00046318]
[1745364590273,0.412,93520.0,93518.0,0.00046318]
[1745364590480,0.10830305,93519.0,93518.0,0.00046318]
[1745364591162,0.412,93520.0,93518.0,0.00046318]
[1745364591377,0.52030305,93520.0,93518.0,0.00046318]
[1745364591586,0.412,93520.0,93518.0,0.00046318]
[1745364592503,0.002,93519.0,93518.0,0.00046318]
[1745364592968,0.19598597,93519.0,93518.0,0.00046318]
[1745364593169,0.32082597,93519.0,93518.0,0.00046318]
[1745364594802,0.002,93520.0,93518.0,0.09446318]
[1745364595019,0.001,93554.0,93519.0,0.11044125]
[1745364595277,0.001,93554.0,93538.0,0.064145]
[1745364595535,0.001,93554.0,93530.0,0.57309704]
[1745364595536,0.001,93554.0,93540.0,0.57309704]
[1745364595785,0.001,93554.0,93541.0,0.397812]
[1745364596015,0.001,93554.0,93542.0,0.0457]
[1745364596461,0.001,93554.0,93543.0,0.24021]
[1745364596884,0.001,93554.0,93543.0,0.168663]
[1745364597092,0.001,93554.0,93543.0,0.282435]
[1745364597314,0.001,93554.0,93542.0,0.0457]
[1745364597521,0.08568292,93552.0,93542.0,0.0457]
[1745364597725,0.10830305,93551.0,93542.0,0.0457]
[1745364598282,0.10830305,93551.0,93524.0,0.0454]
[1745364598283,0.01069027,93543.0,93524.0,0.0454]
[1745364598560,0.01954104,93551.0,93518.0,0.00146318]
[1745364598561,0.01069278,93521.0,93518.0,0.00146318]
[1745364598926,0.01069427,93508.0,93483.0,0.0472488]
[1745364599085,0.22458853,93505.0,93491.0,0.0014635]
[1745364599297,0.01069438,93507.0,93491.0,0.0014635]
[1745364599501,0.01069484,93503.0,93491.0,0.0014635]
[1745364599703,0.01069427,93508.0,93491.0,0.0014635]
[1745364599911,0.2138574,93521.0,93491.0,0.0014635]
[1745364599912,0.10830305,93506.0,93491.0,0.0014635]
[1745364600111,0.12724,93513.0,93491.0,0.0014635]
[1745364600313,0.10830305,93512.0,93491.0,0.0014635]
[1745364600772,0.10830305,93512.0,93492.0,0.00732975]
[1745364600993,0.12724,93513.0,93494.0,0.0481]
[1745364601211,0.12724,93513.0,93495.0,0.234057]
[1745364601418,0.12724,93513.0,93495.0,0.159325]
[1745364601629,0.12724,93513.0,93495.0,0.185207]
[1745364601849,0.002,93503.0,93495.0,0.185207]
[1745364602054,0.002,93503.0,93494.0,0.0481]
[1745364602247,0.12724,93513.0,93495.0,0.106107]
[1745364602717,0.12724,93513.0,93495.0,0.002]
[1745364602919,0.10830305,93509.0,93495.0,0.002]
[1745364603139,0.10830305,93509.0,93491.0,0.0014635]
[1745364603359,0.10830305,93509.0,93494.0,0.001]
[1745364604629,0.10830305,93509.0,93491.0,0.0014635]
[1745364604841,0.10830305,93509.0,93495.0,0.002]
[1745364605259,0.10830305,93509.0,93491.0,0.0014635]
[1745364605682,0.10830305,93508.0,93491.0,0.0014635]
[1745364606216,0.12724,93533.0,93494.0,0.01454085]
[1745364606407,0.002,93509.0,93496.0,0.01454085]
[1745364606615,0.002,93509.0,93500.0,0.3]
[1745364606822,0.002,93509.0,93501.0,0.10830305]
[1745364607028,0.002,93509.0,93501.0,0.75443464]
[1745364607236,0.002,93509.0,93502.0,0.594465]
[1745364607455,0.002,93509.0,93507.0,0.01454085]
[1745364607681,0.12724,93533.0,93509.0,0.01454085]
[1745364607885,0.12724,93533.0,93510.0,0.10830305]
[1745364608089,0.12724,93533.0,93511.0,0.507809]
[1745364608538,0.08568292,93537.0,93512.0,0.140806]
[1745364608744,0.08568292,93527.0,93506.0,0.0481]
[1745364608963,0.08568292,93527.0,93500.0,0.3]
[1745364608964,0.08568292,93507.0,93500.0,0.3]
[1745364609175,0.10830305,93506.0,93500.0,0.3]
[1745364610263,0.2139208,93493.0,93491.0,0.0024635]
[1745364610484,0.01069587,93494.0,93491.0,0.0024635]
[1745364610485,0.23554305,93492.0,93491.0,0.0024635]
[1745364611772,0.23754305,93492.0,93491.0,0.0024635]
[1745364612002,0.23758305,93492.0,93491.0,0.0024635]
[1745364613763,0.57309704,93510.0,93491.0,0.0024635]
[1745364613764,0.12728,93523.0,93492.0,0.01454085]
[1745364613961,0.35244,93548.0,93494.0,0.01454085]
[1745364613962,0.01068981,93547.0,93494.0,0.01454085]
[1745364614146,0.24627297,93546.0,93496.0,0.01454085]
[1745364614345,0.57309704,93540.0,93497.0,0.46732905]
[1745364614543,0.10830305,93539.0,93497.0,0.10830305]
[1745364614745,0.12728,93538.0,93498.0,0.41440215]
[1745364614982,0.35244,93548.0,93507.0,0.01454085]
[1745364615205,0.57309704,93540.0,93508.0,0.867669]
[1745364615394,0.10830305,93539.0,93509.0,0.00731948]
[1745364615605,0.08568292,93537.0,93509.0,0.00731948]
[1745364615817,0.10830305,93536.0,93509.0,0.00731948]
[1745364616226,0.57309704,93530.0,93509.0,0.00731948]
[1745364616432,0.57309704,93530.0,93508.0,0.0946]
[1745364616433,0.10830305,93529.0,93508.0,0.0946]
[1745364622145,0.12724,93528.0,93508.0,0.0946]
[1745364622373,0.10830305,93527.0,93508.0,0.0946]
[1745364622585,0.12724,93526.0,93508.0,0.0946]
[1745364622796,0.58378993,93520.0,93508.0,0.0946]
[1745364623000,0.01069312,93518.0,93495.0,0.0493]
[1745364623152,0.21292292,93526.0,93495.0,0.0493]
[1745364623153,0.01069518,93500.0,93495.0,0.0493]
[1745364623358,0.01069427,93508.0,93491.0,0.0024635]
[1745364623359,0.10830305,93499.0,93491.0,0.0024635]
[1745364624192,0.10930305,93499.0,93458.0,0.00213931]
[1745364624395,0.00146649,93499.0,93467.0,0.06419377]
[1745364624604,0.00146649,93499.0,93469.0,0.07489113]
[1745364624819,0.00246649,93499.0,93479.0,0.01069758]
[1745364625039,0.00246649,93499.0,93481.0,0.01454085]
[1745364625256,0.00146649,93499.0,93482.0,2.28505427]
[1745364625476,0.00146649,93499.0,93483.0,1.414339]
[1745364625697,0.00146649,93499.0,93484.0,0.10830305]
[1745364625905,0.00146649,93499.0,93485.0,0.00213897]
[1745364626112,0.00146649,93499.0,93486.0,1.27475705]
[1745364626322,0.00146649,93499.0,93487.0,0.39775963]
[1745364626530,0.00146649,93499.0,93495.0,0.3]
[1745364627167,0.00146649,93499.0,93496.0,0.0946]
[1745364627370,0.08568292,93497.0,93495.0,0.3]
[1745364627635,0.10830305,93496.0,93495.0,0.3]
[1745364628447,0.10730305,93496.0,93495.0,0.3]
[1745364629936,0.00146649,93499.0,93495.0,0.3]
[1745364630140,0.00146649,93499.0,93495.0,0.301]
[1745364630475,0.00146649,93499.0,93495.0,0.3]
[1745364630690,0.12678649,93499.0,93495.0,0.3]
[1745364630891,0.001,93496.0,93495.0,0.3]
[1745364631302,0.00046649,93499.0,93495.0,0.3]
[1745364631563,0.00046649,93499.0,93496.0,0.00733544]
[1745364631730,0.00146649,93499.0,93496.0,0.00733544]
[1745364632134,0.00146649,93499.0,93497.0,0.05633544]
[1745364632827,0.00046649,93499.0,93498.0,0.00733544]
[1745364633245,0.00246649,93499.0,93498.0,0.00733544]
[1745364633708,0.00046649,93499.0,93498.0,0.00733544]
[1745364633982,0.00246649,93499.0,93498.0,0.00733544]
[1745364634565,0.00046649,93499.0,93498.0,0.00733544]
[1745364634779,0.00246649,93499.0,93498.0,0.00733544]
[1745364634995,0.00246649,93499.0,93498.0,0.00947447]
[1745364635209,0.00246649,93499.0,93498.0,0.15898347]
[1745364635427,0.00246649,93499.0,93498.0,0.15684444]
[1745364635984,0.001,93529.0,93504.0,0.01069472]
[1745364636184,0.001,93529.0,93506.0,0.064167]
[1745364636185,0.002,93529.0,93506.0,0.064167]
[1745364636390,0.002,93529.0,93507.0,0.77603347]
[1745364636631,0.002,93529.0,93508.0,0.68116142]
[1745364636816,0.002,93529.0,93509.0,0.44086547]
[1745364637019,0.002,93529.0,93510.0,0.394765]
[1745364637216,0.002,93529.0,93510.0,0.29327805]
[1745364637577,0.002,93529.0,93511.0,0.00733544]
[1745364637920,0.002,93529.0,93512.0,0.00213842]
[1745364638124,0.002,93529.0,93512.0,0.00947386]
[1745364638374,0.002,93529.0,93513.0,0.512985]
[1745364638578,0.002,93529.0,93514.0,0.111465]
[1745364638780,0.002,93529.0,93515.0,0.00733544]
[1745364638998,0.002,93529.0,93516.0,0.06629856]
[1745364639180,0.002,93529.0,93517.0,0.696854]
[1745364639385,0.002,93529.0,93518.0,0.2432983]
[1745364639717,0.08568292,93527.0,93518.0,0.00733544]
[1745364640527,0.08568292,93527.0,93499.0,0.0021386]
[1745364640735,0.08568292,93527.0,93500.0,0.10830305]
[1745364640942,0.19398597,93527.0,93518.0,0.003]
[1745364641373,0.19398597,93527.0,93502.0,0.00733151]
[1745364641608,0.10830305,93526.0,93502.0,0.00733151]
[1745364642208,0.10930305,93526.0,93503.0,0.00733151]
[1745364642959,0.001,93526.0,93504.0,0.39820582]
[1745364643166,0.001,93526.0,93505.0,0.205461]
[1745364643378,0.001,93526.0,93506.0,0.00213865]
[1745364643790,0.001,93526.0,93500.0,0.00733151]
[1745364644013,0.001,93526.0,93503.0,0.004]
[1745364644259,0.001,93526.0,93504.0,1.0113497]
[1745364644515,0.001,93526.0,93505.0,1.408271]
[1745364644718,0.001,93526.0,93506.0,0.1104415]
[1745364644923,0.001,93526.0,93507.0,1.139735]
[1745364645138,0.001,93526.0,93508.0,0.10830305]
[1745364645570,0.001,93526.0,93509.0,0.206398]
[1745364645993,0.001,93526.0,93510.0,0.17246662]
[1745364646215,0.001,93526.0,93511.0,1.53751957]
[1745364646425,0.001,93526.0,93524.0,0.07869544]
[1745364646638,0.001,93526.0,93525.0,2.7925749]
[1745364646873,0.001,93526.0,93525.0,0.51469841]
[1745364647083,0.001,93529.0,93526.0,0.02523306]
[1745364647282,0.001,93549.0,93536.0,0.01454085]
[1745364647492,0.001,93549.0,93538.0,0.01454085]
[1745364647702,0.001,93549.0,93539.0,0.95518505]
[1745364647919,0.001,93549.0,93540.0,0.237934]
[1745364648143,0.001,93549.0,93541.0,0.10830305]
[1745364648389,0.001,93549.0,93542.0,0.281884]
[1745364648599,0.001,93549.0,93543.0,0.10830305]
[1745364649047,0.001,93549.0,93544.0,1.67658063]
[1745364649282,0.001,93549.0,93547.0,0.01454085]
[1745364649498,0.001,93549.0,93548.0,1.0500519]
[1745364650601,0.001,93549.0,93548.0,0.10830305]
[1745364650773,0.001,93549.0,93548.0,0.56955256]
[1745364650977,0.001,93549.0,93548.0,0.60122956]
[1745364652824,0.001,93549.0,93548.0,0.61577041]
[1745364653042,0.001,93569.0,93557.0,0.12407287]
[1745364653253,0.001,93569.0,93563.0,0.12766876]
[1745364653465,0.0004644,93569.0,93566.0,0.07481349]
[1745364653683,0.0004644,93569.0,93568.0,0.1228439]
[1745364653917,0.0004245,93586.0,93579.0,0.01454085]
[1745364654128,0.0004245,93586.0,93580.0,3.05746972]
[1745364654346,0.0004245,93586.0,93581.0,2.21800367]
[1745364654540,0.0004245,93586.0,93583.0,0.01454085]
[1745364654749,0.0004245,93586.0,93584.0,1.83922221]
[1745364654949,0.0004245,93586.0,93585.0,0.892521]
[1745364655165,0.0004245,93586.0,93585.0,1.00096255]
[1745364655380,0.0004245,93586.0,93585.0,0.57895155]
[1745364655612,0.0004245,93586.0,93585.0,0.51115755]
[1745364655844,0.0004245,93586.0,93585.0,0.3352695]
[1745364656062,0.0004245,93586.0,93585.0,0.0011385]
[1745364656489,0.0004245,93586.0,93585.0,0.64238155]
[1745364656907,0.0004245,93586.0,93585.0,0.6569224]
[1745364657116,0.0004245,93586.0,93585.0,0.64138155]
[1745364657763,0.0004245,93586.0,93585.0,0.5330785]
[1745364657983,0.0004245,93586.0,93585.0,0.47201955]
[1745364658644,0.0004245,93586.0,93585.0,0.47301955]
[1745364658859,0.0004245,93586.0,93585.0,0.48027295]
[1745364659073,0.0004245,93586.0,93585.0,0.47927295]
[1745364659277,0.0004245,93586.0,93585.0,0.48027295]
[1745364659798,0.0004245,93586.0,93585.0,0.55892663]
[1745364660030,0.0004251,93607.0,93606.0,0.06409845]
[1745364660234,0.0004244,93624.0,93606.0,2.65774005]
[1745364660446,0.0004244,93624.0,93607.0,0.40232605]
[1745364660667,0.08568292,93623.0,93606.0,0.0943]
[1745364660899,0.08568292,93613.0,93591.0,0.045]
[1745364661106,0.08568292,93613.0,93592.0,0.62286805]
[1745364661335,0.08568292,93613.0,93591.0,0.045]
[1745364661336,0.00495745,93612.0,93593.0,0.161932]
[1745364661550,0.10830305,93612.0,93592.0,0.161932]
[1745364661789,0.10830305,93612.0,93589.0,0.234642]
[1745364662013,0.00638216,93611.0,93606.0,0.004]
[1745364662245,0.10830305,93610.0,93606.0,0.004]
[1745364662473,0.01068387,93599.0,93585.0,0.0001385]
[1745364662716,0.73309299,93598.0,93592.0,0.002]
[1745364662933,0.21369119,93593.0,93592.0,0.002]
[1745364663199,0.01068513,93588.0,93585.0,0.0001385]
[1745364663452,0.33879424,93593.0,93551.0,0.001]
[1745364663453,0.01068672,93574.0,93551.0,0.001]
[1745364663658,0.01068638,93577.0,93551.0,0.001]
[1745364663659,0.22910305,93573.0,93551.0,0.001]
[1745364663892,0.0106873,93569.0,93551.0,0.00113867]
[1745364664104,0.01068775,93565.0,93551.0,0.00113867]
[1745364664332,0.224455,93560.0,93551.0,0.00113867]
[1745364664564,0.10830305,93557.0,93551.0,0.00113867]
[1745364665004,0.57309704,93580.0,93551.0,0.00113867]
[1745364665005,0.1208,93568.0,93551.0,0.00113867]
[1745364665222,0.22910305,93567.0,93551.0,0.00113867]
[1745364665658,0.10830305,93567.0,93551.0,0.00113867]
[1745364665900,0.1208,93566.0,93551.0,0.00113867]
[1745364666340,0.1208,93566.0,93552.0,0.39842605]
[1745364666551,0.58377965,93610.0,93553.0,1.099581]
[1745364666552,0.1208,93588.0,93553.0,1.099581]
[1745364666767,0.001,93567.0,93554.0,0.11044043]
[1745364666990,0.001,93567.0,93554.0,0.53193143]
[1745364667267,0.001,93567.0,93555.0,0.28513338]
[1745364667482,0.001,93567.0,93552.0,0.0943]
[1745364667713,0.10830305,93566.0,93553.0,0.304185]
[1745364667931,0.10830305,93566.0,93551.0,0.00113867]
[1745364668163,0.0498,93587.0,93552.0,0.238095]
[1745364668164,0.1208,93569.0,93552.0,0.238095]
[1745364668377,0.10830305,93565.0,93551.0,0.00313867]
[1745364668591,0.10830305,93565.0,93551.0,0.00113867]
[1745364669916,0.08568292,93554.0,93551.0,0.00113867]
[1745364670124,0.10830305,93553.0,93551.0,0.00113867]
[1745364670353,0.57309704,93580.0,93551.0,0.00113867]
[1745364670567,0.10830305,93567.0,93551.0,0.00113867]
[1745364671238,0.1208,93566.0,93551.0,0.00113867]
[1745364671460,0.10830305,93565.0,93551.0,0.00113867]
[1745364676367,0.19398597,93565.0,93551.0,0.00113867]
[1745364676592,0.01068901,93554.0,93551.0,0.00113867]
[1745364676812,0.10830305,93553.0,93551.0,0.00113867]
[1745364678902,0.10830305,93552.0,93551.0,0.00113867]
[1745364679133,0.10830305,93552.0,93531.0,0.001]
[1745364679134,0.01069118,93535.0,93531.0,0.001]
[1745364679356,0.45366032,93534.0,93531.0,0.00113872]
[1745364679808,0.32213361,93532.0,93531.0,0.00113872]
[1745364680033,0.10830305,93532.0,93531.0,0.00113872]
[1745364682992,0.11430305,93532.0,93531.0,0.00113872]
[1745364683210,0.14482549,93532.0,93531.0,0.00113872]
[1745364683435,0.22456529,93514.0,93511.0,0.0008482]
[1745364683652,0.10830305,93513.0,93511.0,0.00098702]
[1745364684541,0.01069358,93514.0,93511.0,0.00098702]
[1745364684542,0.32217934,93512.0,93511.0,0.00098702]
[1745364685133,0.10830305,93512.0,93511.0,0.00098702]
[1745364685691,0.11130305,93512.0,93511.0,0.00098702]
[1745364686198,0.10830305,93512.0,93511.0,0.00098702]
[1745364686638,0.21391747,93494.0,93493.0,0.0008498]
[1745364686833,0.21391747,93494.0,93493.0,0.00098871]
[1745364686834,0.22918305,93494.0,93493.0,0.00098871]
[1745364687482,0.01069781,93477.0,93446.0,0.0462]
[1745364687704,0.01069816,93474.0,93471.0,0.00146649]
[1745364687920,0.10830305,93473.0,93471.0,0.00146649]
[1745364688129,0.10730305,93473.0,93471.0,0.00146649]
[1745364688985,0.10730305,93473.0,93471.0,0.00346649]
[1745364689401,0.10730305,93473.0,93471.0,0.00146649]
[1745364689610,0.10730305,93473.0,93471.0,0.00346649]
[1745364690241,0.12088,93494.0,93471.0,0.00346649]
[1745364690449,0.10830305,93493.0,93471.0,0.00346649]
[1745364690885,0.10830305,93484.0,93471.0,0.00346649]
[1745364691382,0.10830305,93484.0,93471.0,0.00146649]
[1745364692367,0.11030305,93484.0,93471.0,0.00146649]
[1745364693699,0.10830305,93483.0,93471.0,0.00146649]
[1745364693918,0.10830305,93480.0,93471.0,0.00146649]
[1745364694167,0.10830305,93478.0,93471.0,0.00146649]
[1745364695286,0.10830305,93478.0,93459.0,0.00562588]
[1745364695502,0.10830305,93475.0,93446.0,0.0462]
[1745364695743,0.10830305,93471.0,93459.0,0.01877968]
[1745364695964,0.01069942,93463.0,93452.0,0.01849709]
[1745364696176,0.10830305,93462.0,93452.0,0.01849709]
[1745364696406,0.10830305,93462.0,93459.0,0.002]
[1745364697799,0.10830305,93462.0,93452.0,0.01849709]
[1745364698091,0.10830305,93462.0,93458.0,0.002849]
[1745364698507,0.10830305,93462.0,93458.0,0.000849]
[1745364698709,0.01069965,93461.0,93458.0,0.000849]
[1745364698923,0.10830305,93460.0,93458.0,0.000849]
[1745364699142,0.10830305,93459.0,93458.0,0.000849]
[1745364699328,0.10630305,93459.0,93458.0,0.000849]
[1745364700196,0.22378305,93459.0,93458.0,0.000849]
[1745364700646,0.22378305,93459.0,93420.0,0.46274655]
[1745364700856,0.00214058,93458.0,93421.0,1.82474705]
[1745364701067,0.10830305,93457.0,93430.0,0.57309704]
[1745364701286,0.001,93460.0,93440.0,0.57309704]
[1745364701498,0.11962058,93474.0,93441.0,0.94822209]
[1745364701753,0.10830305,93473.0,93442.0,0.259218]
[1745364701962,0.001,93459.0,93432.0,0.10830305]
[1745364702176,0.001,93459.0,93433.0,1.205972]
[1745364702360,0.00214058,93472.0,93433.0,1.205972]
[1745364702566,0.10830305,93471.0,93441.0,0.006]
[1745364702779,0.00214058,93470.0,93442.0,0.135548]
[1745364703001,0.10830305,93469.0,93442.0,0.135548]
[1745364703221,0.01069919,93465.0,93442.0,0.135548]
[1745364703442,0.01069919,93465.0,93441.0,0.006]
[1745364703443,0.01070125,93447.0,93441.0,0.006]
[1745364703679,0.21403651,93442.0,93441.0,0.006]
[1745364703903,0.21407549,93425.0,93421.0,0.01894887]